[Event "*** Titled Tuesday Blitz"]
[Site "Chess.com"]
[Date "2019.04.02"]
[Round "6"]
[White "Benek77"]
[Black "maciek_92"]
[Result "1-0"]
[WhiteElo "2654"]
[BlackElo "2667"]
[TimeControl "180+2"]
[EndTime "15:21:11 PDT"]
[Termination "Benek77 won by resignation"]

1. e4 {[%clk 0:03:01.9]} 1... e5 {[%clk 0:02:58.9]} 2. Nf3 {[%clk 0:03:02.8]}
2... Nc6 {[%clk 0:03:00.1]} 3. Bb5 {[%clk 0:03:03.4]} 3... a6 {[%clk 0:03:01.2]}
4. Ba4 {[%clk 0:03:04.2]} 4... Nf6 {[%clk 0:03:01.3]} 5. d4 {[%clk 0:03:03.9]}
5... b5 {[%clk 0:02:58.6]} 6. dxe5 {[%clk 0:03:02.8]} 6... bxa4 {[%clk
0:02:59.1]} 7. exf6 {[%clk 0:03:03.9]} 7... Qxf6 {[%clk 0:03:00.3]} 8. O-O
{[%clk 0:03:03.7]} 8... Bc5 {[%clk 0:02:59.3]} 9. Nc3 {[%clk 0:03:00]} 9... a3
{[%clk 0:02:59.9]} 10. Nd5 {[%clk 0:02:58.1]} 10... Qd8 {[%clk 0:03:00]} 11. b4
{[%clk 0:02:58.3]} 11... Ba7 {[%clk 0:02:53.9]} 12. Bxa3 {[%clk 0:02:43.9]}
12... d6 {[%clk 0:02:54.9]} 13. Qd3 {[%clk 0:02:42.6]} 13... O-O {[%clk
0:02:54.9]} 14. Bb2 {[%clk 0:02:43.1]} 14... Rb8 {[%clk 0:02:51.7]} 15. Qc3
{[%clk 0:02:44]} 15... Ne5 {[%clk 0:02:45.8]} 16. Nxe5 {[%clk 0:02:44.7]} 16...
dxe5 {[%clk 0:02:47.7]} 17. Qxe5 {[%clk 0:02:46.1]} 17... f6 {[%clk 0:02:42.1]}
18. Qg3 {[%clk 0:02:23.8]} 18... c6 {[%clk 0:02:37.6]} 19. Ne3 {[%clk
0:02:24.5]} 19... Qe7 {[%clk 0:02:32]} 20. Nf5 {[%clk 0:02:22.8]} 20... Bxf5
{[%clk 0:02:28.8]} 21. exf5 {[%clk 0:02:24.7]} 21... Rfe8 {[%clk 0:02:26.3]} 22.
a3 {[%clk 0:02:22.8]} 22... Rbd8 {[%clk 0:02:26.5]} 23. c4 {[%clk 0:02:17.7]}
23... Bb8 {[%clk 0:02:24.1]} 24. Qf3 {[%clk 0:02:14.9]} 24... Rd2 {[%clk
0:02:08.1]} 25. Bc3 {[%clk 0:02:14.8]} 25... Qd6 {[%clk 0:02:09.1]} 26. g3
{[%clk 0:02:14.4]} 26... Rd3 {[%clk 0:02:10.2]} 27. Qh5 {[%clk 0:02:10]} 27...
Rd8 {[%clk 0:01:54.5]} 28. Rac1 {[%clk 0:02:02]} 28... c5 {[%clk 0:01:46.9]} 29.
Rfe1 {[%clk 0:02:01.7]} 29... Qd7 {[%clk 0:01:44.3]} 30. bxc5 {[%clk 0:01:56.6]}
30... Ba7 {[%clk 0:01:43]} 31. Ba5 {[%clk 0:01:50.8]} 31... Rf8 {[%clk
0:01:35.2]} 32. Bb6 {[%clk 0:01:51.1]} 32... Bb8 {[%clk 0:01:36.2]} 33. Rcd1
{[%clk 0:01:51.2]} 33... Rxd1 {[%clk 0:01:35.6]} 34. Rxd1 {[%clk 0:01:53.1]}
34... Qa4 {[%clk 0:01:34.2]} 35. Qe2 {[%clk 0:01:50.6]} 35... h6 {[%clk
0:01:33.8]} 36. Qe6+ {[%clk 0:01:51.3]} 36... Kh7 {[%clk 0:01:34.8]} 37. Rd7
{[%clk 0:01:52.8]} 37... Qxa3 {[%clk 0:01:30.5]} 38. Kg2 {[%clk 0:01:49.6]}
38... Qb2 {[%clk 0:01:27.9]} 39. Rb7 {[%clk 0:01:40.6]} 39... Be5 {[%clk
0:01:26.6]} 40. c6 {[%clk 0:01:37.7]} 40... Qc2 {[%clk 0:00:53.8]} 41. Qd5
{[%clk 0:01:25.6]} 41... Qxf5 {[%clk 0:00:53]} 42. Bd4 {[%clk 0:01:13.6]} 42...
h5 {[%clk 0:00:53.2]} 43. Re7 {[%clk 0:00:51.4]} 43... h4 {[%clk 0:00:51.9]} 44.
f4 {[%clk 0:00:30.4]} 44... h3+ {[%clk 0:00:44.2]} 45. Kf2 {[%clk 0:00:24]}
45... Qc2+ {[%clk 0:00:34.4]} 46. Kf3 {[%clk 0:00:25.4]} 46... Qxh2 {[%clk
0:00:23.4]} 47. Bxe5 {[%clk 0:00:11.6]} 47... Qg2+ {[%clk 0:00:23.5]} 48. Kg4
{[%clk 0:00:12.8]} 48... Qxd5 {[%clk 0:00:23.6]} 49. cxd5 {[%clk 0:00:14.7]}
49... h2 {[%clk 0:00:25]} 50. Bxf6 {[%clk 0:00:13.4]} 50... Rxf6 {[%clk
0:00:23]} 51. Re1 {[%clk 0:00:13.9]} 1-0

[Event "*** Titled Tuesday Blitz"]
[Site "Chess.com"]
[Date "2019.04.02"]
[Round "6"]
[White "IakovUlivar"]
[Black "ChessQueen"]
[Result "1-0"]
[WhiteElo "2540"]
[BlackElo "2649"]
[TimeControl "180+2"]
[EndTime "15:21:14 PDT"]
[Termination "IakovUlivar won by resignation"]

1. e4 {[%clk 0:03:01.9]} 1... c5 {[%clk 0:02:58.8]} 2. Nc3 {[%clk 0:03:00.6]}
2... Nc6 {[%clk 0:02:59.3]} 3. g3 {[%clk 0:02:57.7]} 3... g6 {[%clk 0:02:54.6]}
4. Bg2 {[%clk 0:02:57]} 4... Bg7 {[%clk 0:02:55.8]} 5. d3 {[%clk 0:02:57.1]}
5... Rb8 {[%clk 0:02:53.1]} 6. Nge2 {[%clk 0:02:40.2]} 6... h5 {[%clk
0:02:48.6]} 7. h3 {[%clk 0:02:27]} 7... b5 {[%clk 0:02:45.8]} 8. Bf4 {[%clk
0:02:15]} 8... d6 {[%clk 0:02:44.3]} 9. Qd2 {[%clk 0:02:15.9]} 9... b4 {[%clk
0:02:41.2]} 10. Nd1 {[%clk 0:02:16.6]} 10... e5 {[%clk 0:02:25.6]} 11. Bg5
{[%clk 0:02:05.6]} 11... Nge7 {[%clk 0:02:22.5]} 12. O-O {[%clk 0:02:00.8]}
12... Be6 {[%clk 0:02:23.1]} 13. Kh2 {[%clk 0:01:31.6]} 13... Qd7 {[%clk
0:02:17.8]} 14. b3 {[%clk 0:01:14]} 14... f6 {[%clk 0:02:13.9]} 15. Be3 {[%clk
0:01:13.7]} 15... g5 {[%clk 0:02:12.5]} 16. Nb2 {[%clk 0:01:11.2]} 16... Ng6
{[%clk 0:02:03.7]} 17. Nc4 {[%clk 0:01:10.3]} 17... h4 {[%clk 0:01:40.6]} 18. g4
{[%clk 0:01:10.6]} 18... Bf8 {[%clk 0:01:40.4]} 19. a4 {[%clk 0:01:00.1]} 19...
d5 {[%clk 0:01:36.8]} 20. exd5 {[%clk 0:00:58.7]} 20... Bxd5 {[%clk 0:01:38.7]}
21. Bxd5 {[%clk 0:00:53.2]} 21... Qxd5 {[%clk 0:01:39.5]} 22. Ng1 {[%clk
0:00:54.6]} 22... Be7 {[%clk 0:01:23.2]} 23. Qe2 {[%clk 0:00:53.6]} 23... O-O
{[%clk 0:01:19.4]} 24. Qf3 {[%clk 0:00:53.1]} 24... Rfd8 {[%clk 0:01:14.9]} 25.
Qxd5+ {[%clk 0:00:50.9]} 25... Rxd5 {[%clk 0:01:15.5]} 26. Nf3 {[%clk
0:00:52.8]} 26... Nd8 {[%clk 0:01:10.2]} 27. Nfd2 {[%clk 0:00:47.2]} 27... Ne6
{[%clk 0:01:07.4]} 28. Ne4 {[%clk 0:00:48.2]} 28... Kf7 {[%clk 0:01:08.6]} 29.
Rae1 {[%clk 0:00:43.8]} 29... Rbd8 {[%clk 0:01:09]} 30. f3 {[%clk 0:00:35.1]}
30... R8d7 {[%clk 0:01:09.8]} 31. Rf2 {[%clk 0:00:32]} 31... Bd8 {[%clk
0:01:10.6]} 32. Rff1 {[%clk 0:00:28.7]} 32... Bc7 {[%clk 0:01:10.3]} 33. Rf2
{[%clk 0:00:27]} 33... Ne7 {[%clk 0:01:10.4]} 34. Rfe2 {[%clk 0:00:23.8]} 34...
Kg6 {[%clk 0:01:09.2]} 35. Rg2 {[%clk 0:00:20.1]} 35... Nc6 {[%clk 0:01:08.9]}
36. Bc1 {[%clk 0:00:18.6]} 36... Ncd4 {[%clk 0:01:08]} 37. Rf1 {[%clk
0:00:19.8]} 37... Rg7 {[%clk 0:00:57.7]} 38. Ne3 {[%clk 0:00:19.7]} 38... Rd8
{[%clk 0:00:54.3]} 39. Nc4 {[%clk 0:00:20.6]} 39... f5 {[%clk 0:00:50.9]} 40.
gxf5+ {[%clk 0:00:21.5]} 40... Kxf5 {[%clk 0:00:52.2]} 41. Be3 {[%clk
0:00:17.9]} 41... Nf4 {[%clk 0:00:45.5]} 42. Bxf4 {[%clk 0:00:17.4]} 42... exf4
{[%clk 0:00:45.4]} 43. Ncd2 {[%clk 0:00:13.1]} 43... Nxc2 {[%clk 0:00:44.6]} 44.
Rfg1 {[%clk 0:00:13]} 44... Rdg8 {[%clk 0:00:45.4]} 45. Rc1 {[%clk 0:00:12.9]}
45... Nd4 {[%clk 0:00:40.2]} 46. Rxc5+ {[%clk 0:00:14.8]} 46... Ke6 {[%clk
0:00:40.9]} 47. Rgxg5 {[%clk 0:00:13.9]} 47... Rxg5 {[%clk 0:00:24.3]} 48. Nxg5+
{[%clk 0:00:15.8]} 48... Kd7 {[%clk 0:00:23.3]} 49. Rd5+ {[%clk 0:00:15]} 49...
Kc6 {[%clk 0:00:22.7]} 50. Rxd4 {[%clk 0:00:14.6]} 50... Rxg5 {[%clk 0:00:24]}
51. Ne4 {[%clk 0:00:12.3]} 51... Rd5 {[%clk 0:00:20]} 52. Rc4+ {[%clk
0:00:10.1]} 52... Kd7 {[%clk 0:00:12.5]} 53. Nf6+ {[%clk 0:00:10.5]} 1-0

[Event "*** Titled Tuesday Blitz"]
[Site "Chess.com"]
[Date "2019.04.02"]
[Round "6"]
[White "Gordima"]
[Black "Andrjywa"]
[Result "1-0"]
[WhiteElo "2727"]
[BlackElo "2524"]
[TimeControl "180+2"]
[EndTime "15:21:16 PDT"]
[Termination "Gordima won by resignation"]

1. Nf3 {[%clk 0:02:52.3]} 1... c5 {[%clk 0:03:00.9]} 2. c4 {[%clk 0:02:50.2]}
2... g6 {[%clk 0:03:01]} 3. e4 {[%clk 0:02:50.2]} 3... Bg7 {[%clk 0:03:01.8]} 4.
d4 {[%clk 0:02:51.7]} 4... cxd4 {[%clk 0:03:02]} 5. Nxd4 {[%clk 0:02:53.6]} 5...
Nc6 {[%clk 0:03:03.6]} 6. Be3 {[%clk 0:02:54.7]} 6... Nf6 {[%clk 0:02:59.9]} 7.
Nc3 {[%clk 0:02:54.1]} 7... d6 {[%clk 0:03:01.1]} 8. Be2 {[%clk 0:02:54]} 8...
O-O {[%clk 0:02:59.8]} 9. O-O {[%clk 0:02:54.8]} 9... Nxd4 {[%clk 0:03:00.7]}
10. Bxd4 {[%clk 0:02:56.5]} 10... Be6 {[%clk 0:03:02.3]} 11. f4 {[%clk 0:02:58]}
11... Rc8 {[%clk 0:03:01.5]} 12. b3 {[%clk 0:02:57.9]} 12... a6 {[%clk 0:02:58]}
13. Rc1 {[%clk 0:02:35.5]} 13... Qa5 {[%clk 0:02:17.4]} 14. Qd3 {[%clk
0:02:36.1]} 14... Nd7 {[%clk 0:02:11.4]} 15. Bxg7 {[%clk 0:02:35.2]} 15... Kxg7
{[%clk 0:02:08.8]} 16. f5 {[%clk 0:02:06.3]} 16... Ne5 {[%clk 0:02:09.2]} 17.
Qe3 {[%clk 0:01:47.3]} 17... Bd7 {[%clk 0:02:09.5]} 18. Nd5 {[%clk 0:01:48.9]}
18... Qc5 {[%clk 0:01:51.5]} 19. Qxc5 {[%clk 0:01:48.8]} 19... Rxc5 {[%clk
0:01:39.1]} 20. Nxe7 {[%clk 0:01:48.4]} 20... f6 {[%clk 0:01:39.7]} 21. Rcd1
{[%clk 0:01:44.8]} 21... Re8 {[%clk 0:01:25.1]} 22. Nd5 {[%clk 0:01:40.5]} 22...
gxf5 {[%clk 0:01:26.2]} 23. exf5 {[%clk 0:01:38.5]} 23... b5 {[%clk 0:01:25.4]}
24. b4 {[%clk 0:01:25]} 24... Rcc8 {[%clk 0:00:21.2]} 25. Nb6 {[%clk 0:01:24.1]}
25... Rc7 {[%clk 0:00:18.9]} 26. Nxd7 {[%clk 0:00:55.5]} 26... Nxd7 {[%clk
0:00:15.7]} 27. Bh5 {[%clk 0:00:57.1]} 27... Re5 {[%clk 0:00:11.6]} 28. cxb5
{[%clk 0:00:57.9]} 28... Rxb5 {[%clk 0:00:12.2]} 29. Rxd6 {[%clk 0:00:56.3]}
29... Rxb4 {[%clk 0:00:13.3]} 30. Rxa6 {[%clk 0:00:52.5]} 30... Rb2 {[%clk
0:00:13.7]} 31. Bf3 {[%clk 0:00:43.4]} 31... Ne5 {[%clk 0:00:14.5]} 32. Ba8
{[%clk 0:00:44.3]} 32... Rcc2 {[%clk 0:00:11.9]} 33. a4 {[%clk 0:00:45]} 33...
Ra2 {[%clk 0:00:10.2]} 34. Rb1 {[%clk 0:00:40.3]} 34... Rcb2 {[%clk 0:00:08.8]}
35. Rxb2 {[%clk 0:00:39.5]} 35... Rxb2 {[%clk 0:00:10.7]} 36. h3 {[%clk
0:00:37.7]} 36... Ra2 {[%clk 0:00:10.8]} 37. a5 {[%clk 0:00:29.5]} 37... Nc4
{[%clk 0:00:10.5]} 38. Ra7+ {[%clk 0:00:29.8]} 38... Kh6 {[%clk 0:00:11]} 39. a6
{[%clk 0:00:19.1]} 39... Nd6 {[%clk 0:00:11.8]} 40. g4 {[%clk 0:00:13.7]} 40...
Nb5 {[%clk 0:00:11.8]} 41. Rb7 {[%clk 0:00:08.4]} 41... Rxa6 {[%clk 0:00:13.2]}
42. Rxb5 {[%clk 0:00:09.6]} 42... Rxa8 {[%clk 0:00:14.7]} 43. Rb7 {[%clk
0:00:10.1]} 43... Ra2 {[%clk 0:00:14.2]} 44. Rf7 {[%clk 0:00:10]} 44... Kg5
{[%clk 0:00:12.9]} 45. Rxh7 {[%clk 0:00:11.2]} 45... Kf4 {[%clk 0:00:14.5]} 46.
Kf1 {[%clk 0:00:12.5]} 46... Kf3 {[%clk 0:00:14.9]} 47. Ke1 {[%clk 0:00:13.9]}
47... Re2+ {[%clk 0:00:16]} 48. Kd1 {[%clk 0:00:15.1]} 48... Rh2 {[%clk
0:00:17.5]} 49. Rh6 {[%clk 0:00:16.2]} 49... Kf4 {[%clk 0:00:16.5]} 50. Rxf6
{[%clk 0:00:13.1]} 50... Rxh3 {[%clk 0:00:18]} 51. Rg6 {[%clk 0:00:14.7]} 51...
Ke5 {[%clk 0:00:17.7]} 52. f6 {[%clk 0:00:15.1]} 52... Rf3 {[%clk 0:00:18.3]}
53. g5 {[%clk 0:00:16.3]} 53... Ke6 {[%clk 0:00:19]} 54. Rg7 {[%clk 0:00:17.8]}
54... Rf2 {[%clk 0:00:18.6]} 55. Ke1 {[%clk 0:00:18.8]} 55... Rf5 {[%clk
0:00:19.1]} 56. Ke2 {[%clk 0:00:19]} 1-0

[Event "*** Titled Tuesday Blitz"]
[Site "Chess.com"]
[Date "2019.04.02"]
[Round "6"]
[White "penguingm1"]
[Black "VitaliyBernadskiy"]
[Result "0-1"]
[WhiteElo "2945"]
[BlackElo "2740"]
[TimeControl "180+2"]
[EndTime "15:21:17 PDT"]
[Termination "VitaliyBernadskiy won by resignation"]

1. d4 {[%clk 0:03:01.9]} 1... d5 {[%clk 0:03:00.6]} 2. Bf4 {[%clk 0:03:01.8]}
2... e6 {[%clk 0:02:58.3]} 3. e3 {[%clk 0:03:02.6]} 3... Ne7 {[%clk 0:02:57.7]}
4. c4 {[%clk 0:03:00.9]} 4... Nbc6 {[%clk 0:02:58.1]} 5. Nc3 {[%clk 0:03:01.9]}
5... a6 {[%clk 0:02:58.9]} 6. Nf3 {[%clk 0:03:02.7]} 6... g6 {[%clk 0:02:59.7]}
7. h4 {[%clk 0:03:02.7]} 7... h6 {[%clk 0:03:00.5]} 8. a3 {[%clk 0:02:47.2]}
8... Bg7 {[%clk 0:03:00.7]} 9. Qc2 {[%clk 0:02:46.9]} 9... O-O {[%clk
0:02:48.7]} 10. Be2 {[%clk 0:01:50.4]} 10... b6 {[%clk 0:02:39.8]} 11. O-O
{[%clk 0:01:21]} 11... Bb7 {[%clk 0:02:31.6]} 12. cxd5 {[%clk 0:01:20.6]} 12...
exd5 {[%clk 0:02:31.6]} 13. Bd3 {[%clk 0:01:10.2]} 13... Qd7 {[%clk 0:02:21.4]}
14. Rac1 {[%clk 0:01:02.8]} 14... Rac8 {[%clk 0:02:22.1]} 15. Rfe1 {[%clk
0:01:01]} 15... Rfe8 {[%clk 0:02:22.6]} 16. b4 {[%clk 0:00:55.7]} 16... Nd8
{[%clk 0:02:08.1]} 17. Ne5 {[%clk 0:00:53.9]} 17... Qe6 {[%clk 0:02:09.2]} 18.
Bh2 {[%clk 0:00:53.7]} 18... c5 {[%clk 0:02:08.1]} 19. bxc5 {[%clk 0:00:49.5]}
19... bxc5 {[%clk 0:02:10]} 20. Qa4 {[%clk 0:00:50.9]} 20... Ndc6 {[%clk
0:01:54.2]} 21. Nf3 {[%clk 0:00:43.2]} 21... cxd4 {[%clk 0:01:38.5]} 22. exd4
{[%clk 0:00:41.4]} 22... Qg4 {[%clk 0:01:39.7]} 23. Ne2 {[%clk 0:00:23.2]} 23...
Nf5 {[%clk 0:01:28.3]} 24. Rb1 {[%clk 0:00:18.7]} 24... Ncxd4 {[%clk 0:01:17.3]}
25. Nexd4 {[%clk 0:00:15.2]} 25... Rxe1+ {[%clk 0:01:14.4]} 26. Nxe1 {[%clk
0:00:13.8]} 26... Nxd4 {[%clk 0:00:52.8]} 27. Kh1 {[%clk 0:00:14.4]} 27... Bc6
{[%clk 0:00:45.4]} 28. Qxa6 {[%clk 0:00:13.9]} 28... Ra8 {[%clk 0:00:44.5]} 29.
Qb6 {[%clk 0:00:15]} 29... Rxa3 {[%clk 0:00:43.5]} 30. Qd8+ {[%clk 0:00:15.6]}
30... Kh7 {[%clk 0:00:43.6]} 31. f3 {[%clk 0:00:16.4]} 31... Qe6 {[%clk
0:00:38.8]} 32. Qd6 {[%clk 0:00:12.3]} 32... Qxd6 {[%clk 0:00:33.4]} 33. Bxd6
{[%clk 0:00:14.2]} 33... Ra2 {[%clk 0:00:34.9]} 34. Rc1 {[%clk 0:00:14.8]} 34...
Bb5 {[%clk 0:00:34.4]} 35. Bb1 {[%clk 0:00:13.6]} 35... Ra6 {[%clk 0:00:30.2]}
36. Bc5 {[%clk 0:00:13]} 36... Nb3 {[%clk 0:00:30.7]} 37. Rd1 {[%clk 0:00:05.7]}
37... Nxc5 {[%clk 0:00:30.4]} 38. Rxd5 {[%clk 0:00:07.2]} 38... Ra1 {[%clk
0:00:31.4]} 39. Rxc5 {[%clk 0:00:08.3]} 39... Rxb1 {[%clk 0:00:32.6]} 40. Kh2
{[%clk 0:00:10.2]} 40... Bf8 {[%clk 0:00:25.8]} 41. Rd5 {[%clk 0:00:10.6]} 41...
Bc6 {[%clk 0:00:24.3]} 42. Rd8 {[%clk 0:00:12]} 42... Be7 {[%clk 0:00:24.8]} 43.
Rc8 {[%clk 0:00:12.8]} 43... Rxe1 {[%clk 0:00:22.1]} 44. Rxc6 {[%clk 0:00:13.7]}
44... Bxh4 {[%clk 0:00:23.7]} 45. Rc7 {[%clk 0:00:15.3]} 45... Kg7 {[%clk
0:00:24.3]} 46. g3 {[%clk 0:00:16.7]} 46... Bf6 {[%clk 0:00:24.7]} 47. Kh3
{[%clk 0:00:17.3]} 47... h5 {[%clk 0:00:25.1]} 48. Rc6 {[%clk 0:00:17.4]} 48...
Re3 {[%clk 0:00:25.6]} 49. Kg2 {[%clk 0:00:17.4]} 49... h4 {[%clk 0:00:26.9]}
50. gxh4 {[%clk 0:00:12.4]} 50... Bxh4 {[%clk 0:00:28.8]} 51. Kh3 {[%clk
0:00:13.9]} 51... Bf6 {[%clk 0:00:28.7]} 52. Kg4 {[%clk 0:00:15.2]} 52... Re5
{[%clk 0:00:28.7]} 53. f4 {[%clk 0:00:16.4]} 53... Re1 {[%clk 0:00:29.7]} 54.
Rc7 {[%clk 0:00:17.4]} 54... Re4 {[%clk 0:00:30.2]} 55. Kf3 {[%clk 0:00:18.5]}
55... Ra4 {[%clk 0:00:30.8]} 56. Rb7 {[%clk 0:00:19.8]} 56... Bc3 {[%clk
0:00:28.6]} 57. Rb5 {[%clk 0:00:16.1]} 57... Bd2 {[%clk 0:00:28.8]} 58. f5
{[%clk 0:00:17.5]} 58... Rf4+ {[%clk 0:00:28.1]} 59. Ke2 {[%clk 0:00:18.9]}
59... Rxf5 {[%clk 0:00:29.1]} 60. Rxf5 {[%clk 0:00:19.6]} 60... gxf5 {[%clk
0:00:31]} 61. Kxd2 {[%clk 0:00:21.3]} 61... Kf6 {[%clk 0:00:32.3]} 62. Ke3
{[%clk 0:00:23.2]} 62... Kg5 {[%clk 0:00:33.7]} 63. Kf3 {[%clk 0:00:25]} 63...
f4 {[%clk 0:00:34.8]} 64. Kf2 {[%clk 0:00:26.6]} 64... Kg4 {[%clk 0:00:36.1]}
65. Kg2 {[%clk 0:00:28.2]} 65... f3+ {[%clk 0:00:37.5]} 66. Kf2 {[%clk
0:00:29.7]} 66... Kf4 {[%clk 0:00:38.8]} 67. Kf1 {[%clk 0:00:31.6]} 67... Kg3
{[%clk 0:00:39.8]} 68. Kg1 {[%clk 0:00:32.9]} 68... f2+ {[%clk 0:00:40]} 69. Kf1
{[%clk 0:00:34.3]} 69... f6 {[%clk 0:00:41.5]} 0-1

[Event "*** Titled Tuesday Blitz"]
[Site "Chess.com"]
[Date "2019.04.02"]
[Round "6"]
[White "VFernandezB"]
[Black "mjray79"]
[Result "1/2-1/2"]
[WhiteElo "2249"]
[BlackElo "2192"]
[TimeControl "180+2"]
[EndTime "15:21:22 PDT"]
[Termination "Game drawn - insufficient material"]

1. d4 {[%clk 0:03:01.9]} 1... Nf6 {[%clk 0:02:59.7]} 2. Nf3 {[%clk 0:03:02.1]}
2... g6 {[%clk 0:03:00.5]} 3. c4 {[%clk 0:03:03.5]} 3... Bg7 {[%clk 0:03:01.2]}
4. g3 {[%clk 0:03:03.5]} 4... d6 {[%clk 0:03:02.1]} 5. Bg2 {[%clk 0:03:04.5]}
5... O-O {[%clk 0:03:03.4]} 6. O-O {[%clk 0:03:06]} 6... Nbd7 {[%clk 0:03:03.8]}
7. Nc3 {[%clk 0:03:05.3]} 7... e5 {[%clk 0:03:05]} 8. e4 {[%clk 0:03:06.1]} 8...
c6 {[%clk 0:03:06]} 9. h3 {[%clk 0:03:05.8]} 9... Qa5 {[%clk 0:03:05.7]} 10. Be3
{[%clk 0:02:34.2]} 10... exd4 {[%clk 0:03:05]} 11. Nxd4 {[%clk 0:02:32.5]} 11...
Nb6 {[%clk 0:03:05.8]} 12. Nb3 {[%clk 0:02:25.1]} 12... Qh5 {[%clk 0:03:05.9]}
13. Bxb6 {[%clk 0:01:39.4]} 13... axb6 {[%clk 0:02:35.7]} 14. Qxh5 {[%clk
0:01:27.5]} 14... Nxh5 {[%clk 0:02:35.9]} 15. Rfd1 {[%clk 0:01:28.4]} 15... Be6
{[%clk 0:02:22.7]} 16. Bf1 {[%clk 0:01:12.7]} 16... Bxc3 {[%clk 0:02:15.7]} 17.
bxc3 {[%clk 0:01:14.3]} 17... Rfd8 {[%clk 0:02:06.6]} 18. Rd2 {[%clk 0:01:14.8]}
18... b5 {[%clk 0:02:02.6]} 19. Rad1 {[%clk 0:01:05.3]} 19... bxc4 {[%clk
0:02:00.8]} 20. Nd4 {[%clk 0:01:05.6]} 20... d5 {[%clk 0:00:59]} 21. Nxe6 {[%clk
0:01:04.1]} 21... fxe6 {[%clk 0:00:59.8]} 22. Bxc4 {[%clk 0:01:05.6]} 22... Nf6
{[%clk 0:00:57.2]} 23. exd5 {[%clk 0:01:04.6]} 23... exd5 {[%clk 0:00:55.6]} 24.
Bb3 {[%clk 0:01:05.8]} 24... Ne4 {[%clk 0:00:54.1]} 25. Rd3 {[%clk 0:00:56.3]}
25... Kg7 {[%clk 0:00:49.9]} 26. c4 {[%clk 0:00:49.4]} 26... Rf8 {[%clk
0:00:41]} 27. f4 {[%clk 0:00:38.9]} 27... Nc5 {[%clk 0:00:36.2]} 28. Re3 {[%clk
0:00:33.5]} 28... Nxb3 {[%clk 0:00:36.1]} 29. axb3 {[%clk 0:00:31.6]} 29... dxc4
{[%clk 0:00:14.7]} 30. bxc4 {[%clk 0:00:32.3]} 30... Rf7 {[%clk 0:00:15.7]} 31.
Rb3 {[%clk 0:00:24]} 31... Rb8 {[%clk 0:00:14.8]} 32. Rdb1 {[%clk 0:00:23]}
32... Kf6 {[%clk 0:00:12.8]} 33. Rb6 {[%clk 0:00:23.4]} 33... Rc7 {[%clk
0:00:11]} 34. Kf2 {[%clk 0:00:20.9]} 34... Ke6 {[%clk 0:00:11.8]} 35. Rd1 {[%clk
0:00:20.2]} 35... Rd7 {[%clk 0:00:10.3]} 36. Rxd7 {[%clk 0:00:14.1]} 36... Kxd7
{[%clk 0:00:10.6]} 37. Rb1 {[%clk 0:00:14.6]} 37... b5 {[%clk 0:00:10.7]} 38.
cxb5 {[%clk 0:00:15]} 38... cxb5 {[%clk 0:00:11.5]} 39. Ke3 {[%clk 0:00:15.5]}
39... Kd6 {[%clk 0:00:11.1]} 40. Kd4 {[%clk 0:00:16.8]} 40... Kc6 {[%clk
0:00:07.8]} 41. Ke5 {[%clk 0:00:16.9]} 41... Re8+ {[%clk 0:00:07.9]} 42. Kf6
{[%clk 0:00:18.1]} 42... Re3 {[%clk 0:00:08.9]} 43. Rg1 {[%clk 0:00:18.6]} 43...
b4 {[%clk 0:00:06.3]} 44. Kg7 {[%clk 0:00:19.3]} 44... Re7+ {[%clk 0:00:07.2]}
45. Kh6 {[%clk 0:00:20.8]} 45... Rb7 {[%clk 0:00:07.5]} 46. g4 {[%clk
0:00:21.6]} 46... b3 {[%clk 0:00:08.2]} 47. h4 {[%clk 0:00:19.6]} 47... b2
{[%clk 0:00:08.6]} 48. g5 {[%clk 0:00:19.5]} 48... Kd6 {[%clk 0:00:08.9]} 49. h5
{[%clk 0:00:19.2]} 49... gxh5 {[%clk 0:00:08.3]} 50. Rb1 {[%clk 0:00:20.1]}
50... h4 {[%clk 0:00:08.2]} 51. f5 {[%clk 0:00:19]} 51... h3 {[%clk 0:00:07.5]}
52. g6 {[%clk 0:00:20.3]} 52... hxg6 {[%clk 0:00:07.3]} 53. fxg6 {[%clk
0:00:21.7]} 53... h2 {[%clk 0:00:03.4]} 54. g7 {[%clk 0:00:21.9]} 54... h1=Q+
{[%clk 0:00:04.3]} 55. Rxh1 {[%clk 0:00:22.1]} 55... b1=Q {[%clk 0:00:05.3]} 56.
Rxb1 {[%clk 0:00:21.5]} 56... Rxb1 {[%clk 0:00:06.7]} 57. g8=Q {[%clk
0:00:21.1]} 57... Rh1+ {[%clk 0:00:08]} 58. Kg7 {[%clk 0:00:22.3]} 58... Rg1+
{[%clk 0:00:09.4]} 59. Kf8 {[%clk 0:00:23.9]} 59... Rxg8+ {[%clk 0:00:10.5]} 60.
Kxg8 {[%clk 0:00:25.3]} 1/2-1/2